bitfinex-derivatives/quotes_ETHF0:USTF0_20240817
["timestamp","ask_amount","ask_price","bid_price","bid_amount"]
[1723903812227,5.97601883,2609.9,2609.8,0.0033433]
[1723903813931,2.14401883,2609.9,2609.8,0.0033433]
[1723903814532,5.97601883,2609.9,2609.8,0.0033433]
[1723903816533,2.14401883,2609.9,2609.8,0.0033433]
[1723903817529,13.51665883,2609.9,2609.8,0.0033433]
[1723903818442,1.43675,2609.7,2609.2,1.002481]
[1723903818645,1.43702,2609.2,2609.1,0.00574911]
[1723903819139,2.51442,2609.2,2609.1,0.00574911]
[1723903819638,2.51442,2609.2,2609.1,0.00899601]
[1723903819839,6.34722,2609.2,2609.1,0.00899601]
[1723903820340,2.51442,2609.2,2609.1,0.00899601]
[1723903821033,6.34722,2609.2,2609.1,0.00899601]
[1723903821338,13.88824,2609.2,2609.1,0.00899601]
[1723903822341,8.88824,2609.2,2609.1,0.00899601]
[1723903822542,7.45122,2609.2,2609.1,0.00899601]
[1723903822745,6.34722,2609.2,2609.1,0.00899601]
[1723903824441,7.45122,2609.2,2609.1,0.00899601]
[1723903827933,8.88824,2609.2,2609.1,0.00899601]
[1723903828334,13.88824,2609.2,2609.1,0.00899601]
[1723903829046,8.88824,2609.2,2609.1,0.00899601]
[1723903832636,7.45122,2609.2,2609.1,0.00899601]
[1723903832843,8.88824,2609.2,2609.1,0.00899601]
[1723903834639,13.88824,2609.2,2609.1,0.00899601]
[1723903835446,15.32526,2609.2,2609.1,0.00899601]
[1723903835656,15.32526,2609.2,2608.3,1.002481]
[1723903835657,1.43746,2608.4,2608.3,1.002481]
[1723903835839,1.43746,2608.4,2608.3,1.374681]
[1723903836154,1.43746,2608.4,2608.3,0.7142]
[1723903836345,1.43746,2608.4,2608.3,4.5478]
[1723903836649,3.97892,2608.4,2608.3,0.71857234]
[1723903836947,3.97892,2608.4,2608.3,0.37657234]
[1723903837345,7.81252,2608.4,2608.3,0.00437234]
[1723903838138,6.37506,2608.4,2608.3,0.00437234]
[1723903839342,1.43746,2608.4,2608.3,0.00437234]
[1723903839648,1.43746,2608.4,2608.3,1.48537234]
[1723903839958,1.43746,2608.4,2608.3,0.38137234]
[1723903841636,2.54146,2608.4,2608.3,0.00437234]
[1723903842041,6.37506,2608.4,2608.3,0.00437234]
[1723903842838,7.81252,2608.4,2608.3,0.00437234]
[1723903843153,6.37506,2608.4,2608.3,0.00437234]
[1723903843349,11.02032,2608.4,2608.3,0.00437234]
[1723903843561,2.87548,2607.9,2607.8,0.3611]
[1723903843851,7.18728,2607.9,2607.8,0.3611]
[1723903844458,7.19180465,2607.9,2607.8,0.36494019]
[1723903844862,11.02620465,2607.9,2607.8,0.00384019]
[1723903845455,11.37390465,2607.9,2607.8,0.00384019]
[1723903845945,10.26990465,2607.9,2607.8,0.00384019]
[1723903848450,2.8757,2607.7,2607.6,0.00574911]
[1723903848949,6.7109,2607.7,2607.6,0.00574911]
[1723903849150,21.19705,2607.7,2606.8,4.64612]
[1723903849351,1.43824,2607.0,2606.9,0.3434]
[1723903849557,1.43821,2607.1,2606.9,0.3434]
[1723903850062,1.43815,2607.2,2606.9,1.78168]
[1723903850258,1.4382,2607.1,2606.9,0.3434]
[1723903850450,1.4382,2607.1,2607.0,0.3558]
[1723903855062,1.43815,2607.2,2607.0,0.3558]
[1723903855250,0.00574911,2607.3,2607.1,1.43815]
[1723903855666,0.00574911,2607.3,2607.2,0.373]
[1723903856549,0.00574911,2607.3,2607.2,1.81112]
[1723903856756,0.00574911,2607.3,2607.2,5.64632]
[1723903856956,4.113,2607.5,2607.4,1.43801]
[1723903857264,4.113,2607.5,2607.4,4.64581]
[1723903857448,4.113,2607.5,2607.4,8.48101]
[1723903858852,4.113,2607.5,2607.4,5.27321]
[1723903860361,5.55096,2607.5,2607.4,3.8352]
[1723903860853,4.113,2607.5,2607.4,5.27321]
[1723903861049,1.43793,2607.6,2607.4,3.8352]
[1723903861262,1.43793,2607.6,2607.5,0.3591]
[1723903861551,1.44362911,2607.7,2607.5,0.7157]
[1723903861763,1.4379,2607.6,2607.5,0.7157]
[1723903862164,1.44362911,2607.7,2607.5,0.7157]
[1723903862466,1.44362911,2607.7,2607.5,2.15366]
[1723903862763,0.00574911,2607.7,2607.6,1.4379]
[1723903863362,0.00574911,2607.7,2607.6,5.2731]
[1723903864264,1.44359911,2607.7,2607.6,3.8352]
[1723903864562,1.44359911,2607.7,2607.5,2.15363]
[1723903864563,1.4379,2607.6,2607.5,0.7157]
[1723903864960,1.4379,2607.6,2607.5,4.5509]
[1723903865365,1.4379,2607.6,2607.2,0.373]
[1723903865566,1.43806,2607.4,2607.3,0.3793]
[1723903866169,1.43806,2607.4,2607.3,0.7468]
[1723903866365,2.15317,2607.5,2606.8,3.21818223]
[1723903866570,1.43823,2607.1,2606.9,0.7468]
[1723903866779,1.43823,2607.0,2606.9,0.7468]
[1723903867669,1.43829,2606.9,2606.8,0.01038223]
[1723903867865,1.4382,2607.1,2606.8,1.44871223]
[1723903868358,4.64587,2607.3,2606.8,1.44871223]
[1723903868564,1.43829,2606.9,2606.8,0.01038223]
[1723903868962,1.43827,2607.0,2606.8,0.01038223]
[1723903869372,1.43829,2606.9,2606.8,0.01038223]
[1723903869562,1.43827,2607.0,2606.8,0.01038223]
[1723903870763,1.43829,2606.9,2606.8,0.01038223]
[1723903871575,2.49469,2606.9,2606.8,0.01038223]
[1723903873459,1.43829,2606.9,2606.8,0.01038223]
[1723903875077,1.43827,2607.0,2606.8,0.01038223]
[1723903875576,1.43827,2607.0,2606.8,1.44872223]
[1723903876073,2.52621,2607.1,2606.8,0.01038223]
[1723903876463,2.52621,2607.1,2606.8,1.44868223]
[1723903878380,1.43821,2607.1,2606.9,1.43829]
[1723903878773,1.43821,2607.1,2606.8,1.44869223]
[1723903879576,1.43821,2607.1,2606.9,1.43829]
[1723903880683,1.43821,2607.1,2606.8,1.81129223]
[1723903885879,2.54321,2607.1,2606.8,1.81129223]
[1723903886278,2.16596,2607.2,2606.8,1.47798223]
[1723903886482,1.105,2607.4,2607.1,1.105]
[1723903886680,1.8477,2607.4,2607.2,0.355]
[1723903886880,1.8477,2607.4,2607.2,0.7244]
[1723903887585,1.8477,2607.4,2607.3,1.43807]
[1723903887880,10.924,2607.5,2607.4,1.43801]
[1723903888082,2.89873,2607.6,2607.4,1.43801]
[1723903888486,0.00574911,2607.7,2607.4,1.105]
[1723903888688,0.00574911,2607.7,2607.6,1.4379]
[1723903888881,0.00574911,2607.7,2607.6,4.35766917]
[1723903889184,0.00574911,2607.7,2607.6,7.54538817]
[1723903889382,0.00574911,2607.7,2607.6,8.15258505]
[1723903889570,0.00574911,2607.7,2607.6,9.65729201]
[1723903889775,0.00574911,2607.7,2607.6,14.65729201]
[1723903889976,0.00452465,2607.9,2607.8,1.43779]
[1723903890176,0.00452465,2607.9,2607.8,4.35802931]
[1723903890382,0.00452465,2607.9,2607.8,6.27528747]
[1723903891682,0.00452465,2607.9,2607.8,13.69398253]
[1723903891985,0.00452465,2607.9,2607.8,14.65524438]
[1723903892280,0.00571195,2608.1,2608.0,1.43768]
[1723903892486,0.00571195,2608.1,2608.0,4.3568069]
[1723903892686,0.00571195,2608.1,2608.0,13.69282021]
[1723903893072,0.00571195,2608.1,2608.0,12.18916557]
[1723903893380,0.01044177,2608.1,2608.0,6.27412913]
[1723903894784,0.01044177,2608.1,2608.0,5.27208]
[1723903895386,0.01044177,2608.1,2608.0,5.62578]
[1723903899283,0.01044177,2608.1,2608.0,4.1881]
[1723903899475,0.01044177,2608.1,2608.0,5.62578]
[1723903900995,0.01044177,2608.1,2607.7,0.3776]
[1723903900996,0.35764177,2608.1,2607.7,0.3776]
[1723903901286,1.4378,2607.8,2607.6,1.43785]
[1723903901679,0.3696,2607.7,2607.6,1.43785]
[1723903902083,0.3696,2607.7,2607.6,13.50012099]
[1723903903286,0.3696,2607.7,2607.6,12.06227099]
[1723903903287,1.80745,2607.7,2607.6,12.06227099]
[1723903903489,1.80745,2607.7,2607.5,0.3716]
[1723903903686,1.80748,2607.7,2607.5,0.3716]
[1723903903994,1.80748,2607.7,2607.5,1.80955]
[1723903906392,0.3696,2607.7,2607.6,1.4379]
[1723903906594,0.3696,2607.7,2607.5,0.3716]
[1723903906801,0.3696,2607.7,2607.6,1.4379]
[1723903907596,7.67844177,2608.1,2607.6,3.8352]
[1723903907791,7.67844177,2608.1,2607.7,1.43783]
[1723903907792,1.81032,2608.0,2607.7,1.43783]
[1723903908294,1.43774,2607.9,2607.6,1.43787]
[1723903908490,1.43774,2607.9,2607.7,1.43785]
[1723903908996,1.43774,2607.9,2607.6,1.43789]
[1723903909186,0.3726,2608.0,2607.5,0.3716]
[1723903909391,1.43774,2607.9,2607.3,3.2078]
[1723903909594,1.43793,2607.6,2607.3,4.64585]
[1723903909789,1.0844,2607.5,2607.4,7.88221536]
[1723903910190,1.0844,2607.5,2607.4,11.71741536]
[1723903910589,1.0844,2607.5,2607.4,7.88221536]
[1723903911493,1.0844,2607.5,2607.4,11.71741536]
[1723903911691,7.33124177,2608.1,2607.4,11.71741536]
[1723903911891,0.7021,2607.8,2607.6,1.4379]
[1723903912197,2.1399,2607.8,2607.5,1.43793]
[1723903912397,0.7021,2607.8,2607.6,1.4379]
[1723903913495,0.3551,2607.8,2607.6,1.43785]
[1723903913695,0.3551,2607.8,2607.7,0.3556]
[1723903914100,0.3551,2607.8,2607.7,1.79345]
[1723903919607,0.7229,2608.0,2607.8,1.43779]
[1723903919791,0.3737,2607.9,2607.8,1.43779]
[1723903920705,0.3737,2607.9,2607.7,1.79342]
[1723903921902,0.3737,2607.9,2607.7,1.79344]
[1723903923509,0.3737,2607.9,2607.8,1.43779]
[1723903923800,0.3737,2607.9,2607.7,1.79342]
[1723903924403,1.81145,2607.9,2607.7,0.3556]
[1723903924600,1.104,2607.8,2607.6,1.43788]
[1723903925000,2.5418,2607.8,2607.5,2.91096]
[1723903925202,2.54188,2607.7,2607.5,0.369]
[1723903925498,1.43799,2607.5,2607.2,1.8171]
[1723903925701,1.813,2607.4,2607.2,2.18612]
[1723903925907,2.1619,2607.4,2607.2,2.18611]
[1723903926707,1.0579,2607.4,2607.2,2.18611]
[1723903926904,1.43793,2607.6,2607.3,2.54202]
[1723903927103,2.54188,2607.7,2607.4,1.43801]
[1723903927798,1.43791,2607.6,2607.4,1.43801]
[1723903928006,1.104,2607.7,2607.4,1.43801]
[1723903928202,1.43791,2607.6,2607.4,1.43801]
[1723903928397,1.43791,2607.6,2607.3,2.46214913]
[1723903928398,1.43791,2607.6,2607.3,3.90018913]
[1723903928597,1.43794,2607.6,2607.3,3.90018913]
[1723903928809,1.43794,2607.6,2607.3,2.89814]
[1723903929507,1.43801,2607.4,2607.3,2.10604913]
[1723903929805,2.54201,2607.4,2607.1,2.44020913]
[1723903930008,0.7064,2607.3,2607.1,2.80330913]
[1723903930202,0.7064,2607.3,2607.2,8.15479167]
[1723903930400,2.14447,2607.3,2607.2,8.15479167]
[1723903930704,1.43812,2607.2,2607.0,1.36604913]
[1723903931005,0.3629,2607.1,2607.0,1.36604913]
[1723903931209,1.45753455,2607.1,2607.0,3.2838877]
[1723903931507,1.45753455,2607.1,2607.0,1.91783857]
[1723903931707,0.01935455,2607.1,2607.0,2.92116762]
[1723903931911,1.43817,2607.2,2607.0,2.92116762]
[1723903932097,1.43817,2607.2,2607.1,1.00332905]
[1723903932294,1.43817,2607.2,2607.0,1.00332905]
[1723903932511,1.43817,2607.2,2607.1,1.00332905]
[1723903932709,2.1445,2607.3,2607.1,1.00332905]
[1723903933005,1.43812,2607.2,2607.1,1.00332905]
[1723903933212,2.14451,2607.3,2607.1,1.00332905]
[1723903933803,1.43812,2607.2,2607.1,1.00332905]
[1723903934106,1.43818,2607.1,2606.9,0.7144]
[1723903936011,1.43824,2607.0,2606.9,0.7144]
[1723903936209,1.43829,2606.9,2606.8,0.01038223]
[1723903936701,5.27429,2606.9,2606.8,0.01038223]
[1723903942014,6.71258,2606.9,2606.8,0.01038223]
[1723903942215,5.27429,2606.9,2606.8,0.01038223]
[1723903942820,7.45568,2606.9,2606.8,0.01038223]
[1723903943112,7.41568,2606.9,2606.8,0.01038223]
[1723903943306,9.18519,2606.9,2606.8,0.01038223]
[1723903943506,1.43858,2606.4,2606.2,2.12915]
[1723903943811,1.4385,2606.6,2606.3,1.43858]
[1723903944005,1.43851,2606.5,2606.3,1.43858]
[1723903944520,1.43849,2606.6,2606.3,1.44318671]
[1723903945413,1.43849,2606.6,2606.4,1.43856]
[1723903946116,1.43849,2606.6,2606.3,1.79119671]
[1723903946621,1.43849,2606.6,2606.4,1.43857]
[1723903947018,1.43849,2606.6,2606.3,1.79119671]
[1723903948918,1.43849,2606.6,2606.4,1.43855]
[1723903951320,1.44417911,2606.7,2606.4,1.43855]
[1723903951723,1.43847,2606.6,2606.4,1.43855]
[1723903951917,2.54918911,2606.7,2606.4,1.43855]
[1723903952223,1.43846,2606.6,2606.4,1.43855]
[1723903957228,2.54351,2606.5,2606.3,1.79119671]
[1723903958720,1.105,2606.5,2606.4,1.43857]
[1723903958922,1.105,2606.5,2606.3,0.35260671]
[1723903959223,2.54352,2606.5,2606.3,1.79120671]
[1723903961229,1.105,2606.5,2606.3,1.79120671]
[1723903961528,1.105,2606.5,2606.3,0.35260671]
[1723903962030,1.105,2606.5,2606.3,1.79118671]
[1723903962526,1.105,2606.5,2606.3,1.79120671]
[1723903964528,1.105,2606.5,2606.4,1.43857]
[1723903964919,1.105,2606.5,2606.3,0.35260671]
[1723903965229,1.105,2606.5,2606.4,1.43857]
[1723903966122,1.105,2606.5,2606.3,1.79119671]
[1723903966334,1.105,2606.5,2606.3,1.44319671]
[1723903967330,0.7174,2606.4,2606.3,1.44319671]
[1723903968422,0.7174,2606.4,2606.3,2.44652576]
[1723903968623,0.7174,2606.4,2606.3,0.00460671]
[1723903968919,0.7174,2606.4,2606.3,2.44655576]
[1723903969836,1.105,2606.5,2606.4,1.43857]
[1723903970028,1.105,2606.5,2606.4,2.44189905]
[1723903970219,1.105,2606.5,2606.4,1.43857]
[1723903970623,1.105,2606.5,2606.4,2.44189905]
[1723903971232,0.7282,2606.6,2606.4,2.44189905]
[1723903971419,1.8332,2606.6,2606.4,2.44189905]
[1723903971729,1.11074911,2606.7,2606.6,1.43846]
[1723903972638,1.11074911,2606.7,2606.6,2.18416]
[1723903975239,1.11074911,2606.7,2606.6,3.18748905]
[1723903976137,4.113,2606.9,2606.8,1.43835]
[1723903976333,1.8129,2607.1,2607.0,1.43824]
[1723903976538,1.8129,2607.1,2607.0,2.44275712]
[1723903976839,1.8129,2607.1,2607.0,4.36063538]
[1723903977039,1.8129,2607.1,2607.0,5.57115062]
[1723903977237,1.8129,2607.1,2607.0,6.17848279]
[1723903977238,1.105,2607.1,2607.0,6.17848279]
[1723903977429,1.105,2607.2,2607.1,1.43818]
[1723903977626,0.73321195,2607.3,2607.2,1.43812]
[1723903977834,0.73321195,2607.3,2607.2,5.46991858]
[1723903978233,0.73321195,2607.3,2607.2,4.86262706]
[1723903979348,0.73321195,2607.3,2607.2,3.35583333]
[1723903979640,0.73321195,2607.3,2607.2,4.86262706]
[1723903980141,0.73321195,2607.3,2607.2,5.46991847]
[1723903980330,0.73321195,2607.3,2607.2,5.4698382]
[1723903980538,0.73321195,2607.3,2607.2,4.0317182]
[1723903980738,0.73321195,2607.3,2607.2,2.92220787]
[1723903981142,0.73321195,2607.3,2607.2,2.92233249]
[1723903981334,2.17128195,2607.3,2607.2,2.92234909]
[1723903981644,2.53298195,2607.3,2607.2,1.00457481]
[1723903982740,0.73321195,2607.3,2607.2,2.44269481]
[1723903983247,0.73321195,2607.3,2607.2,1.00457481]
[1723903983438,0.73321195,2607.3,2607.2,2.44269481]
[1723903984140,0.37881195,2607.3,2607.2,2.44269481]
[1723903985842,0.37881195,2607.3,2607.2,1.43812]
[1723903986235,0.37881195,2607.3,2607.1,2.44272481]
[1723903986539,1.105,2607.2,2607.1,2.44272481]
[1723903992652,1.105,2607.2,2607.1,1.43815]
[1723903993548,1.105,2607.2,2607.1,2.44272481]
[1723903993753,1.105,2607.2,2607.1,1.43815]
[1723903993958,1.105,2607.2,2607.1,2.44272481]
[1723903994544,1.105,2607.2,2607.1,1.43815]
[1723903996751,1.105,2607.2,2607.0,3.15107481]
[1723903997152,1.105,2607.2,2607.1,1.43818]
[1723903998256,1.105,2607.2,2607.0,3.15108481]
[1723903998453,1.105,2607.2,2607.0,2.14651]
[1723903998755,1.105,2607.2,2607.1,1.43818]
[1723904000360,1.105,2607.2,2607.0,3.15107481]
[1723904001259,2.54318,2607.1,2606.9,1.00457481]
[1723904001455,1.105,2607.1,2606.9,1.00457481]
[1723904001661,1.105,2607.0,2606.7,1.00457481]
[1723904001870,1.105,2606.8,2606.7,1.00457481]
[1723904002050,1.105,2606.8,2606.7,1.4384]
[1723904002253,1.105,2606.8,2606.6,2.80479481]
[1723904002653,1.81352,2606.9,2606.7,2.44297481]
[1723904002853,0.3752,2606.9,2606.7,2.44297481]
[1723904003053,0.3752,2606.9,2606.8,1.43835]
[1723904003257,2.54322,2607.1,2606.8,1.43835]
[1723904003451,1.81342,2607.1,2606.8,2.44292481]
[1723904003660,0.3752,2607.1,2607.0,1.43824]
[1723904003855,0.3752,2607.1,2606.9,1.81095]
[1723904004159,0.3752,2607.1,2607.0,0.3456]
[1723904004760,0.3752,2607.1,2607.0,1.78384]
[1723904005063,0.00571195,2607.3,2607.0,6.29117481]
[1723904005255,1.44381195,2607.3,2607.1,1.43817]
[1723904005455,0.00571195,2607.3,2607.1,1.43817]
[1723904005968,1.44379195,2607.3,2607.0,3.89337481]
[1723904006154,0.00571195,2607.3,2607.1,1.43816]
[1723904006660,1.11071195,2607.3,2607.1,1.43816]
[1723904007160,0.00571195,2607.3,2607.1,1.43816]
[1723904007358,1.11071195,2607.3,2607.1,1.43816]
[1723904007764,2.54878195,2607.3,2607.1,1.43816]
[1723904008063,2.54878195,2607.3,2607.2,1.43812]
[1723904008064,1.11071195,2607.3,2607.2,1.43812]
[1723904011266,2.54881195,2607.3,2607.1,1.43815]
[1723904011566,2.54881195,2607.3,2607.0,2.78839481]
[1723904011567,2.54315,2607.2,2607.0,2.78839481]
[1723904011770,0.3787,2607.1,2607.0,2.78839481]
[1723904012265,2.92188,2607.1,2607.0,1.00457481]
[1723904012462,1.43824,2607.0,2606.9,1.74787481]
[1723904012664,1.43832,2606.9,2606.8,1.00395633]
[1723904012966,1.43832,2606.9,2606.7,1.38085633]
[1723904013153,1.105,2606.8,2606.7,2.81925633]
[1723904013351,1.105,2606.9,2606.7,5.84751705]
[1723904013569,2.54329,2606.9,2606.8,1.00391739]
[1723904016858,2.54329,2606.9,2606.8,2.92194812]
[1723904017063,2.54329,2606.9,2606.8,1.00391739]
[1723904017369,6.37929,2606.9,2606.8,1.00391739]
[1723904018669,1.4384,2606.7,2606.6,1.87739373]
[1723904018864,1.4384,2606.7,2606.6,4.03264339]
[1723904019170,1.43846,2606.6,2606.5,1.00481609]
[1723904019875,1.78706,2606.6,2606.5,1.00481609]
[1723904021071,2.89206,2606.6,2606.5,1.00481609]
[1723904021759,2.89206,2606.6,2606.5,2.92312063]
[1723904021968,2.89206,2606.6,2606.5,1.00481609]
[1723904022159,2.89206,2606.6,2606.5,2.92309051]
[1723904022361,2.89206,2606.6,2606.5,1.00481609]
[1723904023760,1.43851,2606.5,2606.4,1.00481609]
[1723904023961,2.54351,2606.5,2606.4,2.92323425]
[1723904024382,2.54351,2606.5,2606.4,3.29513425]
[1723904024763,1.105,2606.5,2606.4,3.29513425]
[1723904025067,1.4536,2606.6,2606.4,5.84342967]
[1723904025269,1.4536,2606.6,2606.5,1.00419266]
[1723904026965,2.89206,2606.6,2606.5,1.00419266]
[1723904027272,2.89206,2606.6,2606.4,2.81466266]
[1723904028266,1.4536,2606.6,2606.4,2.81466266]
[1723904031275,1.4536,2606.6,2606.5,0.3472]
[1723904032776,2.89206,2606.6,2606.5,0.3472]
[1723904034267,1.4536,2606.6,2606.5,0.3472]
[1723904035175,2.89206,2606.6,2606.5,0.3472]
[1723904035972,1.43851,2606.5,2606.4,1.00419266]
[1723904036277,2.89209,2606.6,2606.4,1.00419266]
[1723904037163,1.43851,2606.5,2606.4,1.00419266]
[1723904037576,2.89209,2606.6,2606.4,1.00419266]
[1723904040979,2.89206,2606.6,2606.4,2.44275266]
[1723904041675,1.4536,2606.6,2606.4,2.44275266]
[1723904042481,1.4536,2606.6,2606.4,2.80175266]
[1723904042980,1.4536,2606.6,2606.5,1.00419266]
[1723904043483,2.89206,2606.6,2606.5,1.00419266]
[1723904044674,0.3486,2606.6,2606.5,1.00419266]
[1723904044875,1.4536,2606.6,2606.5,1.00419266]
[1723904045678,2.89206,2606.6,2606.5,1.00419266]
[1723904048977,2.89206,2606.6,2606.4,1.50711689]
[1723904048978,1.43851,2606.5,2606.4,1.00419266]
[1723904049176,2.54351,2606.5,2606.4,1.00419266]
[1723904049372,1.43857,2606.4,2606.3,0.00460671]
[1723904049578,2.89847,2606.4,2606.3,0.00460671]
[1723904049780,6.73527,2606.4,2606.3,0.00460671]
[1723904059573,6.73527,2606.4,2606.3,0.38180671]
[1723904059977,6.73527,2606.4,2606.3,1.38599937]
[1723904060374,1.43854,2606.5,2606.3,4.74296707]
[1723904060579,1.105,2606.5,2606.4,1.36509266]
[1723904060878,2.54351,2606.5,2606.4,1.36509266]
[1723904062382,1.43857,2606.4,2606.3,1.38599937]
[1723904062586,2.54357,2606.4,2606.3,3.91195702]
[1723904062882,2.54357,2606.4,2606.3,3.30562078]
[1723904063086,2.54357,2606.4,2606.3,2.53055955]
[1723904063289,2.54357,2606.4,2606.3,4.03767644]
[1723904063690,2.54357,2606.4,2606.3,2.53055955]
[1723904064293,2.54357,2606.4,2606.3,4.03767644]
[1723904064596,2.54357,2606.4,2606.3,4.0376812]
[1723904065092,2.54357,2606.4,2606.3,4.03768182]
[1723904066487,2.54357,2606.4,2606.3,2.53051838]
[1723904068495,2.54357,2606.4,2606.3,4.03763527]
[1723904068696,2.54357,2606.4,2606.3,2.92849697]
[1723904069392,6.38037,2606.4,2606.3,2.92849697]
[1723904069591,6.38037,2606.4,2606.3,2.53051945]
[1723904069797,6.38037,2606.4,2606.3,3.53597639]
[1723904069991,6.38037,2606.4,2606.3,1.01006365]
[1723904070494,6.38037,2606.4,2606.3,2.92857678]
[1723904070693,6.38037,2606.4,2606.3,1.01006365]
[1723904071782,2.54357,2606.4,2606.3,1.01006365]
[1723904071987,2.54357,2606.4,2606.3,2.92859608]
[1723904072198,2.54357,2606.4,2606.3,1.01006365]
[1723904072500,2.54357,2606.4,2606.3,2.9285735]
[1723904074192,2.54357,2606.4,2606.3,2.53059016]
[1723904074591,2.54357,2606.4,2606.3,2.92857126]
[1723904075784,2.54357,2606.4,2606.3,3.53604588]
[1723904075991,2.54357,2606.4,2606.3,2.53059118]
[1723904076401,2.54357,2606.4,2606.3,2.92860834]
[1723904077490,2.54357,2606.4,2606.3,3.53609006]
[1723904077803,2.54357,2606.4,2606.3,2.53059828]
[1723904078093,2.54357,2606.4,2606.3,2.92861241]
[1723904078489,2.54357,2606.4,2606.3,2.53059771]
[1723904078800,2.54357,2606.4,2606.3,4.0377146]
[1723904079391,2.54357,2606.4,2606.3,2.53059771]
[1723904079600,2.54357,2606.4,2606.3,4.0377146]
[1723904079995,2.54357,2606.4,2606.3,2.53059771]
[1723904080192,2.54357,2606.4,2606.3,4.0377146]
[1723904080594,2.54357,2606.4,2606.3,2.53059008]
[1723904080990,2.54357,2606.4,2606.3,3.53618513]
[1723904081300,2.54357,2606.4,2606.3,4.03770697]
[1723904081601,2.54357,2606.4,2606.3,2.53059008]
[1723904081802,2.54357,2606.4,2606.3,4.03770697]
[1723904082002,3.98214,2606.4,2606.3,4.03770697]
[1723904082297,3.98214,2606.4,2606.3,0.00460671]
[1723904082298,7.81894,2606.4,2606.3,0.00460671]
[1723904085600,7.81894,2606.4,2606.1,0.00574911]
[1723904085601,1.43862,2606.3,2606.1,0.00574911]
[1723904085796,2.54368,2606.2,2605.8,1.00570363]
[1723904085996,1.4389,2605.8,2605.7,1.00570363]
[1723904086302,1.43895,2605.7,2605.6,1.34770363]
[1723904086496,2.1660222,2605.7,2605.6,1.35087299]
[1723904087295,2.1660222,2605.7,2605.6,0.34516936]
[1723904089608,2.1660222,2605.7,2605.6,0.00316936]
[1723904089812,5.3738222,2605.7,2605.6,0.00316936]
[1723904094609,0.0040722,2605.7,2605.6,1.10816936]
[1723904094912,0.0040722,2605.7,2605.6,6.73807936]
[1723904095115,0.0040722,2605.7,2605.6,7.74378299]
[1723904095810,0.00021745,2605.7,2605.6,9.66253925]
[1723904096012,0.00021745,2605.7,2605.6,8.65683562]
[1723904096716,0.00021745,2605.7,2605.6,9.66051753]
[1723904097314,0.00021745,2605.7,2605.6,7.74176127]
[1723904099220,0.00021745,2605.7,2605.6,6.73807936]
[1723904100511,0.00021745,2605.7,2605.6,11.73807936]
[1723904100716,0.00021745,2605.7,2605.6,12.34556608]
[1723904101416,0.00021745,2605.7,2605.6,7.34556608]
[1723904101713,1.10521745,2605.7,2605.6,1.79547936]
[1723904101923,1.10521745,2605.7,2605.6,0.35646936]
[1723904102215,0.00021745,2605.7,2605.6,1.79547936]
[1723904103217,0.00021745,2605.7,2605.6,0.00316936]
[1723904103410,1.10521745,2605.7,2605.6,0.00316936]
[1723904104511,2.54416745,2605.7,2605.6,0.00316936]
[1723904104718,2.91396745,2605.7,2605.6,0.00316936]
[1723904104915,2.54416745,2605.7,2605.6,0.00316936]
[1723904105112,1.43916745,2605.7,2605.6,0.00316936]
[1723904105808,0.00021745,2605.7,2605.6,2.54717936]
[1723904106010,0.00021745,2605.7,2605.6,6.75947936]
[1723904108205,0.00574911,2605.9,2605.8,1.4389]
[1723904108519,0.00574911,2605.9,2605.8,2.5439]
[1723904108819,0.00574911,2605.9,2605.8,6.3815]
[1723904109022,0.00574911,2605.9,2605.8,3.8376]
[1723904109223,0.01012466,2605.9,2605.8,4.1863]
[1723904109519,0.01012466,2605.9,2605.8,0.3487]
[1723904110723,0.01012466,2605.9,2605.8,1.7876]
[1723904111417,0.01012466,2605.9,2605.8,2.159]
[1723904112820,0.01012466,2605.9,2605.8,9.42064344]
[1723904113031,0.01012466,2605.9,2605.8,10.02813778]
[1723904113410,0.01012466,2605.9,2605.8,10.02809596]
[1723904116228,0.01012466,2605.9,2605.8,10.02810194]
[1723904117131,1.79723,2606.7,2605.9,1.43884]
[1723904117326,1.105,2606.6,2606.4,1.43857]
[1723904117625,1.105,2606.6,2606.5,0.7284]
[1723904117826,2.54346,2606.6,2606.5,0.7284]
[1723904118023,1.43853,2606.5,2606.2,2.44251365]
[1723904118226,1.105,2606.4,2606.2,3.17091365]
[1723904118427,1.4833,2606.4,2606.2,2.16704]
[1723904118632,1.105,2606.3,2606.2,0.3753]
[1723904118831,1.4832,2606.3,2606.1,2.44257365]
[1723904119728,1.4832,2606.3,2606.2,1.43868]
[1723904120133,1.4832,2606.3,2606.2,1.78518]
[1723904120328,0.3782,2606.3,2606.2,1.78518]
[1723904120631,0.3782,2606.3,2606.2,2.78905365]
[1723904121024,0.3782,2606.3,2606.2,1.78518]
[1723904121227,0.00275588,2606.5,2606.2,6.29217365]
[1723904121435,0.00275588,2606.5,2606.4,1.43857]
[1723904124432,1.10775588,2606.5,2606.4,1.43857]
[1723904124630,2.54626588,2606.5,2606.3,0.3546]
[1723904124828,2.89086588,2606.5,2606.3,0.3546]
[1723904125027,1.43857,2606.4,2606.3,0.3546]
[1723904125225,2.89089588,2606.5,2606.3,0.3546]
[1723904127036,2.89089588,2606.5,2606.3,1.79322]
[1723904127243,2.54629588,2606.5,2606.3,2.79709365]
[1723904127438,0.00275588,2606.5,2606.4,1.43857]
[1723904127641,0.00275588,2606.5,2606.4,3.35676426]
[1723904127836,0.00275588,2606.5,2606.4,4.36026732]
[1723904128143,0.00275588,2606.5,2606.4,4.36028338]
[1723904128633,0.00275588,2606.5,2606.4,3.35676426]
[1723904129333,0.00275588,2606.5,2606.4,4.35987374]
[1723904129841,0.00275588,2606.5,2606.4,2.44167948]
[1723904131137,0.00275588,2606.5,2606.4,1.43857]
[1723904135843,1.43857,2606.4,2606.2,1.34960948]
[1723904136038,0.3753,2606.3,2606.2,1.78518]
[1723904136241,0.3753,2606.3,2606.2,2.78828948]
[1723904136438,0.3753,2606.3,2606.2,1.78518]
[1723904137247,0.3753,2606.3,2606.2,2.78828948]
[1723904139352,2.54628588,2606.5,2606.2,2.78828948]